bitfinex/quotes_ETHUSD_20240711
["timestamp","ask_amount","ask_price","bid_price","bid_amount"]
[1720740887606,4.89280857,3094.4,3093.6,10.7116236]
[1720740887920,8.12444857,3094.4,3093.6,10.7116236]
[1720740888219,11.35608857,3094.4,3093.6,7.4791736]
[1720740888389,7.14404837,3094.4,3093.6,7.4791736]
[1720740888585,8.26351315,3094.4,3093.6,7.4791736]
[1720740889423,1.80023315,3094.4,3093.6,7.4791736]
[1720740889590,1.80023315,3094.4,3092.0,2.16766625]
[1720740889591,2.2937,3093.5,3092.9,7.4791736]
[1720740889786,2.2937,3093.5,3092.5,12.29]
[1720740889787,5.52636,3093.5,3092.6,10.7126336]
[1720740889988,1.11977534,3093.4,3092.7,3.23335]
[1720740890186,5.38616369,3093.5,3092.7,3.23335]
[1720740890187,5.52629,3093.5,3092.7,3.23335]
[1720740890449,1.40162737,3093.5,3092.8,3.23324]
[1720740890627,3.09246369,3093.8,3093.0,6.46606]
[1720740890942,3.23228,3093.8,3093.1,3.23299]
[1720740891139,3.09239778,3093.9,3093.1,3.23299]
[1720740891320,4.11959732,3093.8,3093.1,3.23299]
[1720740891487,0.72119951,3093.7,3093.0,3.23302]
[1720740891693,0.72119951,3093.7,3092.8,6.46654]
[1720740892016,1.84086445,3093.7,3092.9,3.2332]
[1720740892187,1.84086445,3093.7,3092.3,5.55651]
[1720740892188,3.23294,3093.2,3092.0,0.00266625]
[1720740892385,3.23319,3093.0,3092.2,3.23386]
[1720740892784,6.32536797,3093.2,3092.2,3.23386]
[1720740892785,3.09242797,3093.2,3092.3,3.23383]
[1720740893023,3.09242797,3093.2,3092.6,3.23344]
[1720740893325,0.5257428,3093.2,3092.7,3.23342]
[1720740893732,0.5257428,3093.2,3092.5,3.23353]
[1720740894059,3.23318,3093.0,3092.4,7.4791736]
[1720740894835,3.23313,3093.0,3092.4,7.4791736]
[1720740895052,3.23321,3092.9,3092.1,3.23399]
[1720740895548,3.23321,3092.9,3092.1,6.46793]
[1720740895714,3.23321,3092.9,3092.1,3.23394]
[1720740896051,0.68511808,3093.0,3092.4,3.23366]
[1720740896504,0.68511808,3093.0,3092.4,6.46732]
[1720740896690,0.5257428,3093.2,3092.4,3.23366]
[1720740896895,0.5257428,3093.2,3092.6,3.2335]
[1720740897336,1.11983033,3093.1,3092.4,6.46733]
[1720740897540,0.5257428,3093.2,3092.5,3.23353]
[1720740897710,0.5257428,3093.2,3092.6,3.2335]
[1720740898229,0.90143831,3093.1,3092.4,3.23364]
[1720740898542,0.90143831,3093.1,3092.5,3.23357]
[1720740898742,0.90143831,3093.1,3092.6,3.23352]
[1720740900335,0.90143831,3093.1,3092.0,10.71593985]
[1720740900336,3.09102634,3093.2,3092.3,3.23377]
[1720740900648,2.2522,3093.5,3092.0,10.71593985]
[1720740900649,3.09102634,3093.3,3092.5,3.23359]
[1720740900963,4.6394,3093.0,3092.0,10.71592985]
[1720740901119,1.11990468,3092.9,3092.1,3.23403]
[1720740901318,1.11990468,3092.9,3092.2,3.23388]
[1720740901625,4.21054797,3092.9,3092.3,3.23382]
[1720740901835,3.09064329,3092.9,3092.0,7.48183985]
[1720740901999,3.09064329,3093.1,3092.8,3.2333]
[1720740902340,3.09064329,3093.1,3092.6,3.23347]
[1720740902501,3.39970762,3093.1,3092.7,3.23334]
[1720740902700,3.09064329,3093.2,3092.8,3.23326]
[1720740903350,3.09064329,3093.5,3093.2,9.69867]
[1720740903498,0.00082183,3093.6,3093.5,6.46516]
[1720740903699,0.00082183,3093.6,3093.5,3.23258]
[1720740903902,0.00082183,3093.6,3093.1,3.23297]
[1720740904131,0.00082183,3093.6,3093.5,3.23258]
[1720740904328,0.00082183,3093.6,3093.5,6.46516]
[1720740904552,0.00082183,3093.6,3093.5,9.69774]
[1720740904698,0.00082183,3093.6,3093.5,6.46516]
[1720740906113,0.00082183,3093.6,3093.5,9.69774]
[1720740906301,0.00082183,3093.6,3093.5,10.990778]
[1720740906498,0.00082183,3093.6,3093.5,6.46516]
[1720740906722,3.09129313,3094.0,3093.5,6.46516]
[1720740907030,2.3361,3094.9,3093.7,3.23229]
[1720740907031,3.09129313,3094.1,3093.7,3.23229]
[1720740907219,4.21108589,3094.0,3093.7,6.46459]
[1720740907423,4.21108589,3093.9,3093.7,3.23229]
[1720740907599,3.09173351,3093.9,3093.7,3.23229]
[1720740907799,3.09173351,3093.9,3093.8,3.23227]
[1720740908529,8.56727,3094.9,3093.3,3.23276]
[1720740908530,1.11935238,3094.5,3093.3,3.23276]
[1720740908694,5.3361,3094.9,3094.0,3.23206]
[1720740908695,3.09210128,3094.1,3094.0,3.23206]
[1720740908900,3.09210128,3094.2,3094.1,3.23195]
[1720740909099,3.09210128,3094.4,3094.2,3.23185]
[1720740909335,3.09210128,3094.5,3094.4,9.69492]
[1720740909538,3.09210128,3094.7,3094.4,3.23164]
[1720740909715,3.09210128,3094.7,3094.2,0.64638]
[1720740909716,3.09210128,3094.7,3094.6,6.46286]
[1720740909921,2.70558862,3094.7,3094.6,6.46286]
[1720740910121,2.359,3096.5,3095.3,3.23062]
[1720740910318,1.1186738,3096.4,3095.3,2.319]
[1720740910515,1.11846271,3096.3,3096.0,3.22994]
[1720740910734,0.00082753,3097.0,3096.0,3.22911503]
[1720740910937,1.11843758,3096.9,3096.6,3.22927]
[1720740911240,1.11843758,3096.8,3096.6,3.22927]
[1720740911454,0.00082753,3097.0,3096.6,3.22927]
[1720740911747,1.11842421,3096.9,3096.2,3.22975]
[1720740911914,1.11842421,3096.9,3096.1,3.2298]
[1720740912130,0.00082753,3097.0,3096.1,3.2298]
[1720740912131,1.11842421,3096.8,3096.1,3.2298]
[1720740912318,1.11842421,3096.9,3096.2,3.22976]
[1720740912517,1.11851016,3096.8,3096.2,3.22976]
[1720740912718,0.00082753,3097.0,3096.2,3.22893715]
[1720740913046,1.11851858,3096.9,3096.2,3.22893715]
[1720740913251,1.11851858,3096.8,3096.2,3.22893715]
[1720740913461,0.62378228,3097.0,3096.2,3.22893715]
[1720740913756,2.496,3096.8,3096.0,7.4791736]
[1720740913961,1.8028761,3096.7,3096.0,7.4791736]
[1720740914111,1.11862818,3096.6,3096.0,7.4791736]
[1720740914313,3.68435783,3096.7,3096.0,7.4791736]
[1720740914566,1.11867604,3096.6,3096.0,7.4791736]
[1720740914714,3.68435783,3096.7,3096.0,7.47835562]
[1720740914918,2.05960679,3096.6,3096.0,7.47835562]
[1720740915254,0.94095378,3096.6,3096.0,7.47835562]
[1720740915746,3.22957,3096.4,3095.2,3.23072]
[1720740916052,3.22957,3096.4,3095.3,3.23069]
[1720740916215,0.322957,3096.3,3095.3,3.23069]
[1720740916655,3.22978,3096.2,3095.2,3.23072]
[1720740916870,2.4557,3096.1,3095.1,7.47835562]
[1720740917159,8.68556,3096.1,3095.1,7.47835562]
[1720740917459,8.68556,3096.1,3094.8,10.70953562]
[1720740917460,5.4557,3096.1,3094.8,10.70953562]
[1720740917765,3.2303,3095.7,3094.8,10.70953562]
[1720740917979,3.23041,3095.6,3094.7,3.23132]
[1720740918753,3.23041,3095.6,3094.7,3.23050599]
[1720740919468,3.23041,3095.6,3094.4,10.70995562]
[1720740919620,3.23051,3095.5,3094.6,3.23142]
[1720740919965,3.23077,3095.3,3094.4,3.2316]
[1720740920255,3.23099,3095.1,3094.1,3.23194]
[1720740920635,2.402,3095.3,3093.9,10.71047562]
[1720740920636,3.23122,3094.9,3093.9,10.71047562]
[1720740921081,3.23126,3094.8,3093.9,7.47835562]
[1720740921263,3.23176,3094.3,3093.3,3.2327]
[1720740921464,8.856496,3094.7,3093.1,3.23295]
[1720740921795,6.46432,3093.9,3093.8,0.0008212]
[1720740922092,8.95242,3093.9,3093.8,0.0008212]
[1720740923993,2.4881,3093.9,3093.8,0.0008212]
[1720740924149,3.23189,3094.2,3093.8,0.0008212]
[1720740924349,3.0,3094.1,3093.8,0.0008212]
[1720740924549,6.23201,3094.1,3093.8,0.0008212]
[1720740925249,3.23208,3094.0,3093.8,0.0008212]
[1720740925792,0.323183,3094.2,3093.8,0.0008212]
[1720740925996,0.323126,3094.7,3093.8,0.0008212]
[1720740926205,1.11947915,3094.6,3093.9,3.23216]
[1720740926361,2.760451,3095.4,3094.1,3.23195]
[1720740926564,3.23112,3094.9,3094.1,3.23195]
[1720740926764,3.554232,3094.9,3093.9,3.23208]
[1720740927349,5.991091,3095.4,3094.1,3.23194]
[1720740927549,5.991091,3095.4,3094.3,3.23172]
[1720740927550,3.23087,3095.2,3094.3,3.23172]
[1720740927784,3.2307,3095.3,3094.3,3.23172]
[1720740928115,1.11918158,3095.2,3094.3,6.46339]
[1720740928408,1.11918158,3095.2,3093.9,3.23212]
[1720740928409,3.23119,3094.9,3093.9,3.23212]
[1720740928549,3.23119,3094.9,3093.9,3.23207]
[1720740928749,3.23102,3095.0,3094.0,3.23198]
[1720740928947,0.5991151,3095.2,3094.5,3.23153]
[1720740929184,5.66802,3095.4,3094.5,3.23153]
[1720740929368,1.11913238,3095.3,3094.5,3.23153]
[1720740929571,5.66802,3095.4,3094.5,3.23153]
[1720740929773,1.11914259,3095.2,3094.5,3.23153]
[1720740929997,5.66802,3095.4,3094.5,3.23153]
[1720740930205,2.00907525,3095.3,3094.5,3.23153]
[1720740930353,3.23083,3095.2,3094.3,3.2317]
[1720740930553,1.11918724,3095.1,3094.3,3.2317]
[1720740930796,3.23083,3095.2,3094.3,6.46336]
[1720740930984,1.11919155,3095.1,3094.4,3.23163]
[1720740931302,0.88993401,3095.3,3094.4,4.87172356]
[1720740931484,1.1191471,3095.2,3094.4,4.87172356]
[1720740931687,3.23081,3095.2,3094.4,3.23163]
[1720740931871,1.19052236,3095.1,3094.4,3.23163]
[1720740932215,0.07137499,3095.1,3094.4,3.23163]
[1720740933393,0.07137499,3095.1,3094.6,3.23141]
[1720740933600,0.07137499,3095.1,3094.7,3.23123]
[1720740933755,0.06782282,3095.0,3094.7,3.23123]
[1720740933953,0.00081005,3095.5,3094.7,3.23123]
[1720740933954,0.00081005,3095.5,3094.8,0.06462653]
[1720740934187,0.00081005,3095.5,3095.3,3.2307]
[1720740934495,0.00081005,3095.5,3095.4,6.4612]
[1720740934723,0.00081005,3095.5,3095.4,6.52581012]
[1720740935292,0.00081005,3095.5,3095.4,9.6918]
[1720740935494,0.00081005,3095.5,3095.4,13.54638]
[1720740938711,0.00081005,3095.5,3095.4,13.54638]
[1720740938859,0.00081005,3095.5,3095.4,19.77698]
[1720740941023,5e-08,3095.5,3095.4,23.00758]
[1720740941213,5e-08,3095.5,3095.4,25.89758]
[1720740941363,0.00163835,3097.0,3096.9,3.22903]
[1720740942377,0.00163835,3097.0,3096.6,3.22925]
[1720740942703,0.06027034,3096.9,3096.6,3.22925]
[1720740943069,0.06027034,3096.9,3096.8,3.22913]
[1720740943486,0.00163835,3097.0,3096.8,3.22913]
[1720740943807,0.00163835,3097.0,3096.8,6.45818]
[1720740943971,0.06027034,3096.9,3096.8,7.103998]
[1720740944171,0.00163835,3097.0,3096.9,3.22903]
[1720740944466,0.00163835,3097.0,3096.9,6.45806]
[1720740945280,0.00163835,3097.0,3096.9,3.22903]
[1720740945483,0.00163835,3097.0,3096.9,6.45806]
[1720740945685,0.00163835,3097.0,3096.9,9.68709]
[1720740945882,0.00163835,3097.0,3096.9,14.205799]
[1720740946117,0.00163835,3097.0,3096.3,3.22958]
[1720740946293,0.00163835,3097.0,3096.5,3.22936]
[1720740946626,0.05812139,3096.9,3096.7,3.22915]
[1720740946810,0.00163835,3097.0,3096.7,3.22915]
[1720740947126,0.05882984,3096.8,3096.7,3.22915]
[1720740947426,0.00163835,3097.0,3096.7,3.22915]
[1720740947587,0.0587919,3096.8,3096.5,3.22937]
[1720740947924,0.0587919,3096.8,3096.3,3.22962]
[1720740948225,0.00163835,3097.0,3095.9,3.23]
[1720740948530,0.32305383,3096.9,3096.0,3.22994]
[1720740948730,0.32305383,3096.9,3095.9,3.23]
[1720740948731,3.55211383,3096.9,3095.9,3.23]
[1720740948933,3.22917,3096.8,3095.9,3.23]
[1720740949290,3.55211383,3096.9,3095.5,3.23045]
[1720740949291,2.2602,3096.7,3095.5,3.23045]
[1720740949524,3.22968,3096.3,3095.3,5.61063]
[1720740949697,0.322968,3096.2,3095.2,3.2308]
[1720740949898,3.23019,3095.8,3094.4,2.3009]
[1720740950124,3.23019,3095.8,3094.9,3.2311]
[1720740950331,0.0581675,3095.7,3094.9,3.2311]
[1720740950701,0.0581675,3095.7,3094.4,5.53248]
[1720740951030,2.4985,3095.9,3094.4,5.53248]
[1720740951031,3.2306,3095.4,3094.5,3.23144]
[1720740951259,3.2306,3095.4,3094.6,3.23141]
[1720740951565,0.05790846,3095.3,3094.6,3.23141]
[1720740952368,0.05790846,3095.3,3094.8,3.23119]
[1720740952661,3.23021,3095.8,3094.8,3.23119]
[1720740952855,2.4985,3095.9,3094.9,3.23108]
[1720740952856,0.05791633,3095.2,3094.9,3.23108]
[1720740953158,3.0,3095.8,3095.0,3.23092]
[1720740953312,2.4985,3095.9,3095.1,3.2309]
[1720740953517,5.59603,3096.3,3095.1,3.2309]
[1720740953834,3.23008,3095.9,3095.1,3.23084]
[1720740954033,3.23002,3096.0,3095.1,3.23083]
[1720740954232,3.23002,3096.0,3095.1,3.877019]
[1720740954233,0.05819506,3095.8,3095.1,3.877019]
[1720740954424,3.23002,3096.0,3095.1,3.877019]
[1720740954617,0.05813032,3095.7,3095.3,3.23064]
[1720740955150,3.0,3096.2,3095.3,3.23064]
[1720740955350,0.05806557,3095.6,3095.3,6.46125]
[1720740955531,3.0,3096.2,3095.3,7.17845465]
[1720740955851,1.1187831,3096.1,3095.3,7.17845465]
[1720740956014,1.11877278,3096.0,3095.3,7.17845465]
[1720740956217,1.11878275,3095.9,3095.3,7.17845465]
[1720740956413,0.0582598,3095.9,3095.3,7.17845465]
[1720740956660,3.0,3096.2,3095.3,7.17845465]
[1720740956828,1.11877568,3096.1,3095.3,7.17845465]
[1720740957032,1.11877568,3096.0,3095.3,7.17845465]
[1720740957355,0.05832454,3096.0,3095.8,3.23016]
[1720740957576,0.05832454,3096.0,3095.7,3.23019]
[1720740957784,3.22946,3096.5,3095.6,3.23033]
[1720740957946,1.11867791,3096.4,3095.6,3.23033]
[1720740958142,1.11867791,3096.3,3095.8,3.23018]
[1720740958453,1.176977,3096.2,3095.6,3.23033]
[1720740958676,1.176977,3096.2,3095.3,8.19556027]
[1720740958677,1.11867791,3096.1,3095.3,8.19556027]
[1720740958867,1.17492499,3096.1,3095.5,3.23049]
[1720740959068,1.11867791,3096.0,3095.6,3.2303]
[1720740959273,0.05621238,3096.0,3095.6,3.2303]
[1720740959453,3.22961,3096.4,3095.6,3.2303]
[1720740959783,0.05614763,3095.9,3095.6,3.2303]
[1720740959957,3.22961,3096.4,3095.6,3.2303]
[1720740960284,1.11866402,3096.3,3095.4,7.28063603]
[1720740960576,1.11866402,3096.2,3095.7,3.23028]
[1720740960980,0.05636993,3096.1,3095.4,0.81955603]
[1720740961235,0.05636993,3096.1,3095.3,7.47835562]
[1720740961236,1.11866402,3096.0,3095.3,7.47835562]
[1720740961344,1.11866402,3096.0,3095.3,8.22619118]
[1720740961547,1.17306275,3096.0,3095.3,11.45688118]
[1720740961742,1.11866402,3095.9,3095.3,11.45688118]
[1720740961958,1.11866402,3095.9,3095.5,3.23048]
[1720740962190,0.05425356,3095.8,3095.5,6.46089]
[1720740962476,0.05425356,3095.8,3095.5,7.18176256]
[1720740962676,2.4745,3096.2,3095.5,7.18176256]
[1720740962886,1.11869474,3096.1,3095.5,3.23041]
[1720740963190,1.11869474,3096.0,3095.5,3.23041]
[1720740963484,1.11869474,3095.9,3095.5,3.23041]
[1720740963689,1.11869474,3095.8,3095.6,3.23035]
[1720740963898,1.11869474,3096.4,3095.6,3.23035]
[1720740964061,1.11869474,3096.3,3095.6,3.23035]
[1720740964269,1.11869474,3096.2,3095.6,3.23035]
[1720740964467,1.11869474,3096.1,3095.6,3.23035]
[1720740964667,1.11869474,3096.0,3095.6,3.23035]
[1720740964870,1.11869474,3095.9,3095.6,3.23035]
[1720740965165,1.11869864,3095.8,3095.4,3.23053]
[1720740965367,1.11869864,3095.7,3095.2,3.23073]
[1720740965572,1.11879835,3095.6,3095.0,10.70930562]
[1720740965756,1.11879835,3095.5,3095.0,3.23095]
[1720740965951,1.11879835,3095.9,3095.0,3.23095]
[1720740966158,0.05399584,3095.4,3095.2,3.2308]
[1720740966364,5.48496,3096.0,3095.2,3.2308]
[1720740966563,1.11882885,3095.9,3095.2,3.2308]
[1720740966790,1.11882885,3095.8,3095.2,3.2308]
[1720740967072,1.17301896,3095.7,3095.2,3.2308]
[1720740967393,1.11882885,3095.6,3095.2,3.876975]
[1720740967804,0.05402792,3095.5,3095.2,3.876975]
[1720740968102,0.05402792,3095.5,3095.2,3.2308]
[1720740968266,5.48492,3096.0,3095.2,3.23074]
[1720740968466,1.11880746,3095.9,3095.2,3.23074]
[1720740968667,1.11880746,3095.8,3095.2,3.23074]
[1720740968899,1.11880746,3095.9,3095.2,3.23074]
[1720740969103,5.48492,3096.0,3095.2,3.23074]
[1720740969316,1.11882378,3095.9,3095.2,3.23071]
[1720740969469,1.11882378,3095.9,3095.1,3.23088]
[1720740969677,1.11882378,3096.3,3095.6,3.23033]
[1720740970007,1.11861909,3096.2,3095.6,3.23033]
[1720740970178,1.11861909,3096.1,3095.6,6.46066]
[1720740970380,1.11861909,3096.1,3095.7,0.06460158]
[1720740970598,0.00163835,3097.0,3096.3,3.22957]
[1720740970793,1.11843627,3096.9,3096.1,3.22984]
[1720740970997,1.11843627,3096.8,3095.7,3.23021]
[1720740971169,4.34764627,3096.8,3095.9,3.22999]
[1720740971369,1.8761119,3096.7,3095.9,3.22999]
[1720740971594,1.11843627,3096.6,3095.9,3.22999]
[1720740971789,3.65545802,3096.6,3095.7,3.23026]
[1720740971994,4.34791627,3096.5,3095.5,3.23039]
[1720740972172,4.34805627,3096.4,3095.6,3.23032]
[1720740972367,3.22977,3096.2,3095.4,3.23058]
[1720740972614,1.11862385,3096.1,3095.4,3.23058]
[1720740972908,2.404,3095.9,3095.1,7.47835562]
[1720740973106,0.05401104,3095.8,3095.1,7.47835562]
[1720740973309,0.05401104,3095.8,3095.2,3.23076]
[1720740973485,1.17269665,3095.8,3095.2,3.23076]
[1720740973672,1.11868561,3095.7,3095.2,3.23076]
[1720740973872,1.11868561,3095.7,3095.5,3.23047]
[1720740973873,0.05391809,3095.6,3095.5,3.23047]
[1720740974073,1.1726037,3095.6,3095.5,3.23047]
[1720740974319,2.3693,3096.3,3095.7,3.23025]
[1720740974608,1.17287834,3096.2,3095.7,3.23025]
[1720740974810,1.17287834,3096.2,3095.7,3.23022]
[1720740975012,1.11863314,3096.1,3095.7,3.23022]
[1720740975317,1.17275917,3096.0,3095.7,3.23022]
[1720740975477,1.11862124,3095.9,3095.7,3.23022]
[1720740975677,0.05400843,3095.8,3095.7,3.23022]
[1720740975878,2.1266271,3096.4,3095.9,3.23003]
[1720740976074,1.17296975,3096.3,3096.0,0.06459633]
[1720740976344,0.05433216,3096.3,3096.2,9.68928]
[1720740976540,0.00163835,3097.0,3096.7,3.22914]
[1720740976742,1.16966116,3096.9,3096.7,3.22914]
[1720740976942,0.05137415,3096.9,3096.8,3.22913]
[1720740977144,1.16963597,3096.9,3096.8,3.22913]
[1720740977960,1.16963597,3096.9,3096.4,3.22948]
[1720740978263,1.11826182,3096.8,3096.6,3.22933]
[1720740978565,1.11826182,3096.8,3096.7,6.45848]
[1720740978859,0.00163835,3097.0,3096.9,3.22903]
[1720740979158,1.1198795,3097.0,3096.9,3.22903]
[1720740979957,1.1198795,3097.0,3096.9,6.45806]
[1720740981122,1.1198795,3097.0,3096.9,7.103866]
[1720740981123,0.00163835,3097.0,3096.9,7.103866]
[1720740981321,0.00163835,3097.0,3096.9,10.332896]
[1720740981548,0.00163835,3097.0,3096.9,13.882896]
[1720740984574,0.00163835,3097.0,3096.9,10.653866]
[1720740986288,0.00163835,3097.0,3096.9,13.882896]
[1720740988693,0.00163835,3097.0,3096.9,15.582896]
[1720740989199,0.00163835,3097.0,3096.9,13.882896]
[1720740990898,0.00163835,3097.0,3096.9,10.653866]
[1720740992784,0.00163835,3097.0,3096.9,7.103866]
[1720740993896,0.00163835,3097.0,3096.9,3.874836]
[1720740994101,0.00163835,3097.0,3096.3,3.2296]
[1720740994303,0.00163835,3097.0,3096.3,3.22956]
[1720740994602,0.0510397,3096.9,3096.3,3.22956]
[1720740994760,1.16947872,3096.9,3096.3,3.22956]
[1720740994962,0.0510397,3096.9,3096.3,3.22956]
[1720740995604,0.0510397,3096.9,3096.5,3.22938]
[1720740996207,0.0510397,3096.9,3096.6,3.22932]
[1720740996888,0.0510397,3096.9,3096.5,3.22938]
[1720740998571,0.0510397,3096.9,3096.6,0.06458419]
[1720740998819,0.0510397,3096.9,3096.8,3.22913]
[1720740998968,0.0510397,3096.9,3096.6,3.22932]
[1720740999173,0.0510397,3096.9,3096.6,6.45857]
[1720740999368,0.0510397,3096.9,3096.6,3.22925]
[1720741000713,0.0510397,3096.9,3096.6,6.45853]
[1720741001013,0.0510397,3096.9,3096.7,3.22923]
[1720741001602,0.0510397,3096.9,3096.8,3.22913]
[1720741002390,0.0510397,3096.9,3096.6,3.22927]
[1720741002782,0.0510397,3096.9,3096.3,3.22956]
[1720741002981,1.11841486,3096.8,3096.1,3.2298]
[1720741003308,0.0510397,3096.9,3096.1,3.2298]
[1720741003309,1.11850237,3096.7,3096.1,3.2298]
[1720741003486,1.11850237,3096.6,3096.1,3.2298]
[1720741003682,0.05048514,3096.7,3096.1,3.2298]
[1720741003683,1.11848128,3096.5,3096.1,3.2298]
[1720741004009,0.05094147,3096.5,3096.3,3.22959]
[1720741004212,0.05094147,3096.5,3096.3,6.45917]
[1720741004519,0.00163835,3097.0,3096.3,6.45917]
[1720741004681,0.05082293,3096.4,3096.3,3.22958]
[1720741004885,0.00163835,3097.0,3096.4,3.22955]
[1720741005085,0.00163835,3097.0,3096.5,3.22936]
[1720741005086,1.11842254,3096.9,3096.5,3.22936]
[1720741005280,1.11842254,3096.8,3096.6,3.22927]
[1720741005485,1.11842254,3096.7,3096.6,3.22927]
[1720741005729,1.11842254,3096.7,3096.5,3.22936]
[1720741005929,0.00163835,3097.0,3096.5,3.22936]
[1720741005930,1.11842254,3096.6,3096.5,3.22936]
[1720741006085,1.11835482,3096.6,3096.5,3.22936]
[1720741006285,1.11835482,3096.6,3096.3,3.22961]
[1720741006486,0.00163835,3097.0,3096.3,3.22961]
[1720741006687,1.11838026,3096.9,3096.3,3.22961]
[1720741006921,1.11838026,3096.8,3096.3,3.22961]
[1720741007226,1.11838026,3096.7,3096.3,3.22961]
[1720741007396,1.11838026,3096.9,3096.3,3.22961]
[1720741007731,1.11838026,3096.9,3096.4,3.22955]
[1720741007903,1.11838026,3096.9,3096.2,3.2297]
[1720741008093,1.72638224,3096.9,3096.2,3.2297]
[1720741008293,1.11838026,3096.8,3096.2,3.2297]
[1720741008625,0.05097641,3096.7,3096.2,3.2297]
[1720741008925,1.11838026,3096.6,3096.3,3.22958]
[1720741009229,0.05084566,3096.5,3096.3,3.22958]
[1720741009401,1.11838026,3096.4,3096.3,3.22958]
[1720741009787,1.16916119,3096.4,3096.3,3.22958]
[1720741010028,1.16916119,3096.4,3096.3,3.875508]
[1720741010029,0.05078093,3096.4,3096.3,3.875508]
[1720741010535,0.00163835,3097.0,3096.3,3.875508]
[1720741010683,0.05077831,3096.4,3096.3,3.22958]
[1720741010884,1.00911006,3097.0,3096.3,3.22958]
[1720741011109,0.05077831,3096.4,3096.3,3.22958]
[1720741011353,1.00911006,3097.0,3096.3,3.22958]
[1720741011489,0.05077831,3096.4,3096.3,3.22958]
[1720741011686,0.05077831,3096.4,3096.3,3.875508]
[1720741012298,0.05077831,3096.4,3096.3,7.105168]
[1720741012502,0.00163835,3097.0,3096.7,3.22917]
[1720741012718,1.11831204,3096.9,3096.7,3.22915]
[1720741012929,1.11831204,3096.8,3096.7,3.22915]
[1720741013494,1.11825235,3096.8,3096.7,3.22915]
[1720741013933,1.11829038,3096.8,3096.7,3.22915]
[1720741014831,0.00163835,3097.0,3096.8,3.22913]
[1720741015030,1.11821884,3096.9,3096.8,3.22913]
[1720741015502,1.11821884,3096.9,3096.6,3.22933]
[1720741015691,1.11821884,3096.8,3096.6,3.22933]
[1720741015887,0.00163835,3097.0,3096.6,3.22933]
[1720741015888,1.11821884,3096.9,3096.7,3.22924]
[1720741016347,0.0505378,3096.8,3096.7,3.22924]
[1720741016543,0.00163835,3097.0,3096.8,3.2291]
[1720741016899,1.16895704,3096.9,3096.8,3.2291]
[1720741017436,1.16895704,3096.9,3096.6,3.22924]
[1720741017649,1.11831381,3096.8,3096.7,3.22921]
[1720741018150,1.16889098,3096.8,3096.7,3.22921]
[1720741021720,1.16884454,3096.7,3096.6,3.22928]
[1720741022050,1.1183321,3096.7,3096.6,3.22928]
[1720741022351,1.1183321,3096.7,3096.6,3.875152]
[1720741022527,1.1183321,3096.7,3096.3,10.70794562]
[1720741022528,2.12959299,3096.7,3096.3,10.70794562]
[1720741022732,2.18045638,3096.6,3096.3,7.47835562]
[1720741022928,0.05057644,3096.6,3096.3,7.47835562]
[1720741023128,2.13006364,3096.5,3096.3,7.47835562]
[1720741023460,2.18045267,3096.4,3096.3,7.47835562]
[1720741023661,2.18043779,3096.4,3096.3,7.47835562]
[1720741024345,2.18043779,3096.4,3095.7,10.70856562]
[1720741024346,1.52187097,3096.4,3095.7,10.70856562]
[1720741024515,1.01112462,3096.1,3095.7,3.23021]
[1720741024716,2.18040038,3096.0,3095.7,3.23021]
[1720741024944,1.11851476,3095.9,3095.7,3.23021]
[1720741025152,1.11851476,3095.9,3095.4,7.47835562]
[1720741025153,1.11851476,3095.9,3095.8,6.46036]
[1720741025499,1.11852297,3096.1,3096.0,3.22997]
[1720741025833,1.01112462,3096.2,3096.0,3.22997]
[1720741026034,1.11853638,3096.1,3096.0,3.22997]
[1720741026228,5.58865,3096.7,3096.0,3.22997]
[1720741026479,1.01112619,3096.3,3096.0,3.22997]
[1720741026677,1.11852574,3096.2,3096.0,6.45986]
[1720741026981,1.11852574,3096.1,3096.0,3.22989]
[1720741027142,1.16935148,3096.1,3096.0,3.22989]
[1720741029674,0.05082574,3096.1,3095.9,6.46007]
[1720741029883,1.16937471,3096.1,3095.9,3.23001]
[1720741030030,1.16937471,3096.1,3095.8,0.646036]
[1720741030031,1.11854897,3096.0,3095.8,3.23016]
[1720741030564,1.11854897,3096.0,3095.6,3.23028]
[1720741030770,0.04943492,3095.9,3095.7,3.23027]
[1720741030970,1.11854897,3095.8,3095.7,3.2302]
[1720741031133,1.11854897,3095.8,3095.7,3.876261]
[1720741031467,1.01112619,3096.3,3096.0,3.2299]
[1720741031675,1.11849074,3096.2,3096.1,3.22984]
[1720741031830,1.16810543,3096.2,3096.1,3.22984]
[1720741033181,1.16807958,3096.2,3096.1,3.22984]
[1720741033390,0.04961469,3096.2,3096.1,3.22984]
[1720741033560,1.11850751,3096.2,3096.1,3.22984]
[1720741033761,1.1681222,3096.2,3096.1,3.22984]
[1720741034279,1.1681222,3096.2,3096.1,7.105688]
[1720741035696,0.04961469,3096.2,3096.1,10.335548]
[1720741035841,0.04961469,3096.2,3096.1,10.885548]
[1720741036047,1.01123727,3096.8,3096.7,3.22924]
[1720741036351,1.35062857,3096.9,3096.8,3.22913]
[1720741036779,2.46887839,3096.9,3096.8,3.22913]
[1720741036976,2.46887839,3096.9,3096.7,3.22924]
[1720741037303,2.80647896,3096.8,3096.6,3.22934]
[1720741037463,1.68822914,3096.7,3096.6,3.22934]
[1720741037652,1.11824982,3096.7,3096.6,3.22934]
[1720741038189,2.85639161,3096.7,3096.6,3.22934]
[1720741038392,2.51921909,3096.7,3096.6,3.22934]
[1720741038599,2.51921909,3096.7,3096.6,6.45868]
[1720741039266,1.16816247,3096.7,3096.6,3.22934]
[1720741039653,1.16824741,3096.7,3096.6,6.45868]
[1720741039950,0.04991265,3096.7,3096.6,7.104548]
[1720741040164,1.3527313,3097.0,3096.8,6.45826]
[1720741040165,1.01344841,3096.9,3096.8,6.45826]
[1720741040387,1.11977607,3097.0,3096.9,6.45806]
[1720741040687,2.13314675,3097.0,3096.9,6.45806]
[1720741041572,2.18324959,3097.0,3096.9,6.45806]
[1720741042275,1.16989667,3097.0,3096.9,7.103866]
[1720741042480,0.05174119,3097.0,3096.9,7.103866]
[1720741042651,2.18322582,3097.0,3096.9,7.103866]
[1720741043077,2.18284296,3097.0,3096.9,7.103866]
[1720741043275,1.16987621,3097.0,3096.9,7.103866]
[1720741043480,0.05174119,3097.0,3096.9,6.45806]